bitfinex/quotes_SOLUSD_20241105
["timestamp","ask_amount","ask_price","bid_price","bid_amount"]
[1730839481059,8.87010015,166.61,166.57,21.0121]
[1730839481261,8.87010015,166.62,166.57,21.0121]
[1730839484750,14.87200015,166.62,166.57,21.3731]
[1730839486461,8.87010015,166.62,166.57,21.3731]
[1730839486670,8.87010015,166.63,166.58,20.0]
[1730839487678,8.87010015,166.63,166.57,30.24320015]
[1730839488876,8.87010015,166.63,166.57,29.88220015]
[1730839490579,14.87140015,166.63,166.57,29.88220015]
[1730839492778,8.87010015,166.62,166.57,21.0121]
[1730839493078,8.87010015,166.63,166.57,29.88220015]
[1730839493877,6.0002,166.66,166.58,28.87010015]
[1730839494054,8.87010015,166.66,166.61,20.0]
[1730839494970,8.87010015,166.65,166.6,20.0]
[1730839495173,8.87010015,166.63,166.6,15.006]
[1730839495371,8.87010015,166.62,166.6,15.006]
[1730839496286,8.87010015,166.64,166.6,21.0084]
[1730839496660,6.0002,166.66,166.6,21.0084]
[1730839496661,8.87010015,166.63,166.6,21.0084]
[1730839497276,8.87010015,166.63,166.6,15.006]
[1730839497863,8.87010015,166.63,166.56,21.9273]
[1730839497864,8.87010015,166.61,166.54,21.0159]
[1730839498057,27.17869,166.66,166.53,15.6833]
[1730839498058,8.87010015,166.56,166.53,15.6833]
[1730839498285,8.87010015,166.57,166.53,36.7004]
[1730839498486,8.87010015,166.59,166.53,36.7004]
[1730839498865,22.12678188,166.63,166.54,0.12549]
[1730839499271,21.8647,166.63,166.55,41.0147]
[1730839499472,8.87010015,166.6,166.55,41.0147]
[1730839500380,8.87010015,166.61,166.55,49.88480015]
[1730839501395,8.87010015,166.58,166.55,20.0]
[1730839501559,35.7313806,166.64,166.51,6.0056]
[1730839501560,23.902374,166.63,166.51,6.0056]
[1730839501766,8.87010015,166.59,166.53,8.87010015]
[1730839502094,35.4804006,166.64,166.55,0.12549]
[1730839502095,8.87010015,166.61,166.55,0.12549]
[1730839502274,6.0009,166.65,166.55,0.12549]
[1730839502475,8.87010015,166.62,166.56,29.88350015]
[1730839502891,8.87010015,166.63,166.57,28.99559015]
[1730839503064,6.26262908,166.66,166.59,28.87010015]
[1730839503264,8.87010015,166.65,166.59,28.87010015]
[1730839503969,8.87010015,166.63,166.58,20.0]
[1730839504195,8.87010015,166.62,166.58,20.0]
[1730839504369,8.87010015,166.62,166.57,6.6449]
[1730839504370,8.87010015,166.6,166.57,20.0]
[1730839504571,8.87010015,166.59,166.56,21.0134]
[1730839504787,8.87010015,166.59,166.56,15.0096]
[1730839505296,8.87010015,166.59,166.56,21.0134]
[1730839505791,6.0013,166.63,166.54,6.0042]
[1730839505792,8.87010015,166.57,166.54,6.0042]
[1730839506780,0.25098,166.62,166.56,0.361]
[1730839506781,8.87010015,166.58,166.56,0.361]
[1730839507277,8.87010015,166.6,166.56,0.361]
[1730839507478,13.85792687,166.59,166.56,0.361]
[1730839508489,13.85792687,166.6,166.56,0.361]
[1730839508671,13.85792687,166.6,166.56,6.3646]
[1730839513814,13.857927,166.65,166.57,33.85792687]
[1730839514097,13.85792687,166.64,166.57,33.85792687]
[1730839514302,13.85792687,166.65,166.59,20.0]
[1730839515501,13.85792687,166.64,166.6,6.0024]
[1730839515678,13.85792687,166.65,166.6,21.0084]
[1730839515998,6.26262908,166.66,166.6,34.86632687]
[1730839516675,20.12055595,166.66,166.6,34.86632687]
[1730839516887,13.85792687,166.63,166.6,21.0084]
[1730839517277,13.85792687,166.64,166.6,21.0084]
[1730839517486,13.85792687,166.65,166.6,21.0084]
[1730839517690,13.85792687,166.64,166.6,21.0084]
[1730839518209,13.85792687,166.65,166.6,21.0084]
[1730839518707,13.85792687,166.65,166.62,6.0016]
[1730839519797,13.85792687,166.65,166.61,20.0]
[1730839520689,13.85792687,166.63,166.6,21.0084]
[1730839520887,13.85792687,166.64,166.6,21.0084]
[1730839521914,13.85792687,166.64,166.6,15.006]
[1730839522409,12.26282908,166.66,166.6,15.006]
[1730839522410,13.85792687,166.65,166.6,15.006]
[1730839522595,13.85792687,166.64,166.6,15.006]
[1730839522912,12.26282908,166.66,166.6,15.006]
[1730839522913,13.85792687,166.63,166.6,15.006]
[1730839523787,13.85792687,166.62,166.59,20.0]
[1730839524215,13.85792687,166.6,166.57,21.012]
[1730839525217,19.85912687,166.64,166.53,15.3197]
[1730839525218,13.85792687,166.58,166.53,15.3197]
[1730839525407,13.85792687,166.58,166.54,6.0045]
[1730839526210,13.85792687,166.58,166.54,21.0159]
[1730839526416,13.85792687,166.57,166.54,15.0114]
[1730839526597,13.85792687,166.56,166.54,15.0114]
[1730839527317,13.85792687,166.56,166.51,21.0197]
[1730839528101,13.85792687,166.56,166.54,0.361]
[1730839528302,13.85792687,166.57,166.54,0.361]
[1730839529298,8.87232441,166.57,166.54,0.361]
[1730839530299,8.87232441,166.56,166.54,0.361]
[1730839530493,8.87232441,166.57,166.54,0.361]
[1730839530700,8.87232441,166.57,166.54,6.3654]
[1730839531601,6.2473401,166.64,166.54,6.3654]
[1730839531809,6.2473401,166.64,166.55,20.0]
[1730839531810,8.87232441,166.62,166.55,20.0]
[1730839532104,8.87232441,166.61,166.55,20.0]
[1730839532315,6.26334719,166.66,166.55,20.0]
[1730839532316,8.87232441,166.6,166.55,20.0]
[1730839532501,6.22639,166.64,166.54,6.3655]
[1730839532702,8.87232441,166.55,166.54,0.361]
[1730839533209,8.87232441,166.56,166.54,0.361]
[1730839533816,56.61808764,166.64,166.54,6.3654]
[1730839533817,8.87232441,166.58,166.54,6.3654]
[1730839534528,50.71718764,166.64,166.54,6.3654]
[1730839534702,30.029164,166.63,166.54,21.3768]
[1730839535020,8.87232441,166.58,166.54,21.3768]
[1730839535823,8.87232441,166.57,166.54,21.3768]
[1730839536406,8.87232441,166.56,166.54,21.3768]
[1730839536903,6.0026,166.6,166.54,21.3768]
[1730839537098,8.87232441,166.58,166.54,21.3768]
[1730839537995,23.776884,166.63,166.54,0.361]
[1730839537996,0.25098,166.55,166.54,0.361]
[1730839538199,0.12549,166.55,166.54,0.361]
[1730839538409,6.3794,166.59,166.54,0.361]
[1730839538410,0.25098,166.58,166.54,0.361]
[1730839538604,8.87232441,166.55,166.54,0.361]
[1730839538810,9.12330441,166.55,166.54,0.361]
[1730839540707,15.12750441,166.55,166.54,0.361]
[1730839545514,0.12549,166.55,166.54,0.361]
[1730839545717,8.99781441,166.55,166.54,0.361]
[1730839546015,6.0031,166.58,166.54,0.361]
[1730839546215,8.87232441,166.55,166.54,0.361]
[1730839548128,12.63835498,166.59,166.54,0.361]
[1730839548405,8.87232441,166.56,166.54,0.361]
[1730839548822,22.62287065,166.61,166.54,0.361]
[1730839548823,8.87232441,166.58,166.54,21.3767]
[1730839549025,8.87232441,166.56,166.54,0.361]
[1730839549209,8.87232441,166.55,166.54,0.361]
[1730839551318,15.00201441,166.55,166.54,0.361]
[1730839551736,8.99781441,166.55,166.54,0.361]
[1730839552835,8.87232441,166.55,166.54,0.361]
[1730839553042,15.12750441,166.55,166.54,0.361]
[1730839555312,39.12987841,166.55,166.54,0.361]
[1730839555517,39.12987841,166.55,166.43,36.5862]
[1730839555518,24.153354,166.54,166.43,36.5862]
[1730839555729,8.87232441,166.48,166.43,36.5862]
[1730839556340,8.87232441,166.5,166.44,8.87232441]
[1730839556723,8.87232441,166.49,166.43,45.45852441]
[1730839557126,8.87232441,166.49,166.44,20.0]
[1730839557548,8.87232441,166.46,166.43,36.5863]
[1730839557716,8.87232441,166.46,166.43,15.0213]
[1730839558429,8.87232441,166.45,166.41,12.1826]
[1730839559442,8.87232441,166.46,166.41,21.1968]
[1730839560732,8.87232441,166.46,166.41,27.206]
[1730839562040,0.25098,166.5,166.42,8.87232441]
[1730839562232,8.87232441,166.48,166.41,36.07832441]
[1730839562438,8.87232441,166.47,166.41,36.07832441]
[1730839562739,8.87232441,166.46,166.41,27.206]
[1730839562945,8.87232441,166.48,166.42,28.87232441]
[1730839563121,8.87232441,166.47,166.42,20.0]
[1730839563718,8.87232441,166.48,166.42,28.87232441]
[1730839564126,8.87232441,166.47,166.43,21.0298]
[1730839564650,8.87232441,166.45,166.43,15.0213]
[1730839564940,8.87232441,166.44,166.41,6.0089]
[1730839565117,8.87232441,166.44,166.4,6.0095]
[1730839565542,35.48929764,166.48,166.39,31.4443]
[1730839565543,8.87232441,166.43,166.39,37.4542]
[1730839566045,8.87232441,166.42,166.39,31.4443]
[1730839566345,6.0086,166.43,166.38,0.3052941]
[1730839566346,8.87232441,166.4,166.38,0.3052941]
[1730839566525,8.87232441,166.39,166.38,0.3052941]
[1730839566842,0.25098,166.42,166.38,0.3052941]
[1730839567018,8.87232441,166.39,166.38,0.3052941]
[1730839567219,8.99781441,166.39,166.38,0.3052941]
[1730839567745,8.87232441,166.4,166.38,0.3052941]
[1730839568639,8.87232441,166.43,166.38,6.3154941]
[1730839569228,8.87232441,166.44,166.38,30.21361851]
[1730839569536,8.87232441,166.46,166.4,8.87232441]
[1730839571842,13.87949481,166.47,166.41,34.91129481]
[1730839572944,13.87949481,166.48,166.42,13.87949481]
[1730839573517,12.83043,166.52,166.41,21.0318]
[1730839573518,13.87949481,166.49,166.43,33.87949481]
[1730839573724,13.87949481,166.5,166.44,13.87949481]
[1730839574219,13.87949481,166.5,166.45,21.0273]
[1730839574438,12.25853,166.52,166.45,21.0273]
[1730839574439,6.25323,166.52,166.47,13.87949481]
[1730839574653,13.87949481,166.53,166.47,13.87949481]
[1730839574826,13.87949481,166.52,166.46,33.87949481]
[1730839575234,13.87949481,166.51,166.46,33.87949481]
[1730839575432,13.87949481,166.53,166.47,34.90419481]
[1730839575750,13.87949481,166.54,166.48,13.87949481]
[1730839576834,13.87949481,166.55,166.49,13.87949481]
[1730839577157,13.87949481,166.54,166.48,33.87949481]
[1730839577448,13.87949481,166.56,166.5,54.90049481]
[1730839579139,13.87949481,166.57,166.51,13.87949481]
[1730839579854,13.87949481,166.56,166.5,54.90049481]
[1730839580224,13.87949481,166.57,166.51,13.87949481]
[1730839580631,13.87949481,166.57,166.52,21.0184]
[1730839580945,13.87949481,166.54,166.5,26.0058]
[1730839581336,13.87949481,166.53,166.49,6.0063]
[1730839581737,13.87949481,166.53,166.49,21.0222]
[1730839582141,6.0033,166.58,166.47,21.0247]
[1730839582142,13.87949481,166.51,166.47,21.0247]
[1730839582835,13.87949481,166.52,166.47,21.0247]
[1730839585159,13.87949481,166.5,166.47,21.0247]
[1730839585653,13.87949481,166.51,166.47,21.0247]
[1730839586227,13.87949481,166.53,166.47,34.90419481]
[1730839587967,13.87949481,166.49,166.45,26.0074]
[1730839588336,45.042564,166.55,166.46,13.87949481]
[1730839588337,13.87949481,166.52,166.46,13.87949481]
[1730839588537,13.87949481,166.53,166.48,20.0]
[1730839589143,13.87949481,166.52,166.47,20.0]
[1730839589346,13.87949481,166.52,166.46,14.00498481]
[1730839589347,13.87949481,166.49,166.46,20.0]
[1730839590239,13.87949481,166.49,166.45,21.0269]
[1730839590637,13.87949481,166.5,166.45,21.0269]
[1730839591343,13.87949481,166.49,166.45,21.0269]
[1730839591742,13.87949481,166.5,166.45,21.0269]
[1730839592148,13.87949481,166.52,166.46,33.87949481]
[1730839592357,13.87949481,166.51,166.46,20.0]
[1730839593153,13.87949481,166.51,166.47,21.0247]
[1730839593749,13.87949481,166.52,166.47,21.0247]
[1730839593960,13.87949481,166.54,166.48,33.87949481]
[1730839594555,13.87949481,166.53,166.48,20.0]
[1730839594871,13.87949481,166.54,166.48,33.87949481]
[1730839595370,13.87949481,166.54,166.49,21.0222]
[1730839595843,13.87949481,166.55,166.49,34.90169481]
[1730839596050,13.87949481,166.53,166.49,21.0222]
[1730839596546,13.87949481,166.51,166.49,15.0159]
[1730839597161,13.87949481,166.51,166.49,21.0222]
[1730839597344,13.87949481,166.51,166.45,13.87949481]
[1730839597345,13.87949481,166.51,166.46,21.026]
[1730839600049,13.87949481,166.52,166.46,34.90549481]
[1730839601477,13.87949481,166.54,166.48,13.87949481]
[1730839602554,13.87949481,166.54,166.49,21.0222]
[1730839603170,13.87949481,166.57,166.51,13.87949481]
[1730839603370,13.87949481,166.58,166.52,13.87949481]
[1730839603677,13.87949481,166.6,166.54,13.87949481]
[1730839603885,13.87949481,166.61,166.55,13.87949481]
[1730839604584,13.87949481,166.62,166.56,34.89289481]
[1730839605287,13.87949481,166.63,166.56,34.89289481]
[1730839605587,13.87949481,166.61,166.56,21.0134]
[1730839605957,13.87949481,166.62,166.56,34.89289481]
[1730839606171,13.87949481,166.61,166.56,21.0134]
[1730839606383,13.87949481,166.58,166.56,15.0096]
[1730839606573,13.87949481,166.59,166.56,15.0096]
[1730839606963,13.87949481,166.6,166.56,15.0096]
[1730839612984,13.87949481,166.59,166.56,15.0096]
[1730839613292,13.87949481,166.6,166.56,15.0096]
[1730839613886,13.87949481,166.61,166.56,15.0096]
[1730839614185,15.098,166.69,166.56,15.0096]
[1730839614186,28.35667427,166.67,166.59,20.12549]
[1730839614372,13.87949481,166.66,166.6,13.87949481]
[1730839614779,13.87949481,166.66,166.61,21.0071]
[1730839615080,0.3052941,166.67,166.61,34.88659481]
[1730839615283,14.18478891,166.67,166.61,34.88659481]
[1730839616279,13.87949481,166.66,166.61,21.0071]
[1730839616780,13.87949481,166.64,166.61,21.0071]
[1730839617485,13.87949481,166.65,166.61,21.0071]
[1730839617786,13.87949481,166.65,166.61,15.0051]
[1730839619785,13.87949481,166.66,166.61,21.0071]
[1730839620099,14.18478891,166.67,166.61,34.88659481]
[1730839621479,13.87949481,166.66,166.61,21.0071]
[1730839621877,14.18478891,166.67,166.61,28.88459481]
[1730839622073,0.3052941,166.67,166.61,28.88459481]
[1730839622989,13.87949481,166.64,166.61,15.0051]
[1730839623291,13.87949481,166.66,166.61,15.0051]
[1730839623494,0.3052941,166.67,166.61,15.0051]
[1730839623667,0.3052941,166.67,166.62,8.86139518]
[1730839623992,0.3052941,166.67,166.61,15.0051]
[1730839624169,0.3052941,166.67,166.62,20.0]
[1730839624493,9.16668928,166.67,166.62,20.0]
[1730839624872,8.86139518,166.66,166.63,6.0013]
[1730839625170,8.86139518,166.64,166.61,15.0051]
[1730839625374,13.85208066,166.63,166.61,15.0051]
[1730839625983,13.85208066,166.64,166.61,21.0071]
[1730839626388,13.85208066,166.65,166.61,21.0071]
[1730839627094,13.85208066,166.65,166.61,15.0051]
[1730839627480,19.85268066,166.65,166.61,15.0051]
[1730839627682,13.85208066,166.64,166.61,15.0051]
[1730839627869,13.85208066,166.62,166.58,6.0028]
[1730839628075,13.85208066,166.61,166.58,6.0028]
[1730839628598,13.85208066,166.59,166.54,45.41928066]
[1730839628893,13.85208066,166.58,166.54,31.5672]
[1730839629105,13.85208066,166.58,166.55,6.0041]
[1730839629791,13.85208066,166.59,166.55,21.0146]
[1730839630091,13.85208066,166.61,166.55,34.86668066]
[1730839630283,13.85208066,166.6,166.55,21.0146]
[1730839631478,13.85208066,166.59,166.55,21.0146]
[1730839631889,13.85208066,166.6,166.55,21.0146]
[1730839635976,13.85208066,166.61,166.55,21.0146]
[1730839636277,13.85208066,166.62,166.56,33.85208066]
[1730839637274,13.85208066,166.61,166.56,20.0]
[1730839637475,13.85208066,166.6,166.56,20.0]
[1730839638303,13.85208066,166.6,166.57,6.0034]
[1730839639978,13.85208066,166.61,166.57,21.0121]
[1730839640192,13.85208066,166.62,166.57,21.0121]
[1730839640915,6.0014,166.63,166.57,34.86418066]
[1730839640916,13.85208066,166.63,166.57,34.86418066]
[1730839641588,13.85208066,166.63,166.57,21.0121]
[1730839642906,13.85208066,166.62,166.57,21.0121]
[1730839644704,6.0011,166.64,166.57,15.0087]
[1730839644705,13.85208066,166.59,166.57,15.0087]
[1730839645912,13.85208066,166.59,166.57,21.0121]
[1730839646324,13.85208066,166.59,166.57,15.0087]
[1730839646517,13.85208066,166.58,166.57,15.0087]
[1730839646687,13.85208066,166.58,166.53,21.0166]
[1730839646883,13.85208066,166.55,166.51,6.0053]
[1730839647190,13.85208066,166.53,166.49,21.0213]
[1730839647787,13.85208066,166.53,166.49,15.0153]
[1730839648410,6.0039,166.56,166.49,15.0153]
[1730839648411,13.85208066,166.54,166.49,15.0153]
[1730839648597,13.85208066,166.54,166.5,20.0]
[1730839649000,13.85208066,166.54,166.51,6.0056]
[1730839650394,13.85208066,166.56,166.51,21.0197]
[1730839650600,13.85208066,166.55,166.51,21.0197]
[1730839651794,13.85208066,166.56,166.51,21.0197]
[1730839652212,13.85208066,166.57,166.51,34.87178066]
[1730839652412,13.85208066,166.56,166.51,21.0197]
[1730839653143,13.85208066,166.58,166.52,33.85208066]
[1730839653311,13.85208066,166.59,166.54,20.0]
[1730839654216,13.85208066,166.6,166.54,33.85208066]
[1730839654443,13.85208066,166.59,166.54,20.0]
[1730839655129,13.85208066,166.59,166.55,21.0147]
[1730839655908,13.85208066,166.58,166.55,21.0147]
[1730839656219,13.85208066,166.56,166.54,20.0]
[1730839656422,13.85208066,166.57,166.54,26.0045]
[1730839657342,13.85208066,166.56,166.54,26.0045]
[1730839657635,13.85208066,166.55,166.49,6.0063]
[1730839657842,13.85208066,166.54,166.49,6.0063]
[1730839658030,13.85208066,166.54,166.51,15.0138]
[1730839659140,13.85208066,166.56,166.51,15.0138]
[1730839659641,13.85208066,166.55,166.51,15.0138]
[1730839661750,13.85208066,166.57,166.51,28.86588066]
[1730839662535,13.85208066,166.58,166.52,33.85208066]
[1730839663042,13.85208066,166.57,166.53,21.0172]
[1730839663743,13.85208066,166.56,166.53,15.0123]
[1730839663922,13.85208066,166.54,166.5,6.006]
[1730839664318,13.85208066,166.53,166.5,6.006]
[1730839664819,13.85208066,166.55,166.5,6.006]
[1730839665020,13.85208066,166.55,166.5,21.021]
[1730839665218,13.85208066,166.58,166.52,13.85208066]
[1730839665419,13.85208066,166.57,166.51,13.85208066]
[1730839665623,13.85208066,166.55,166.51,20.0]
[1730839666224,13.85208066,166.57,166.52,21.0184]
[1730839666426,13.85208066,166.6,166.55,20.0]
[1730839666739,13.85208066,166.58,166.55,20.0]
[1730839667124,13.85208066,166.58,166.53,20.0]
[1730839667320,13.85208066,166.59,166.53,33.85208066]
[1730839667525,13.85208066,166.59,166.54,21.0159]
[1730839667723,13.85208066,166.59,166.55,20.0]
[1730839668539,13.85208066,166.6,166.55,20.0]
[1730839668727,13.85208066,166.61,166.55,33.85208066]
[1730839669743,13.85208066,166.63,166.57,33.85208066]
[1730839670620,13.85208066,166.64,166.59,20.0]
[1730839670821,13.85208066,166.64,166.6,21.0084]
[1730839671241,13.85208066,166.65,166.6,21.0084]
[1730839672025,20.10299163,166.66,166.6,34.86048066]
[1730839672226,13.85208066,166.64,166.6,21.0084]
[1730839674940,13.85208066,166.65,166.6,21.0084]
[1730839675251,13.85208066,166.64,166.6,21.0084]
[1730839677033,19.85268066,166.65,166.6,21.0084]
[1730839678728,6.25091097,166.66,166.61,34.85908066]
[1730839678933,20.15727476,166.67,166.62,20.0]
[1730839678934,14.15737476,166.67,166.62,20.0]
[1730839679131,0.3052941,166.67,166.63,13.97757066]
[1730839679446,0.3052941,166.67,166.65,20.0]
[1730839679839,0.3052941,166.67,166.63,20.12549]
[1730839680030,0.3052941,166.67,166.63,13.97757066]
[1730839680234,0.3052941,166.67,166.64,33.85208066]
[1730839680448,0.3052941,166.67,166.65,21.0021]
[1730839680944,0.3052941,166.67,166.66,33.85208066]
[1730839681143,0.3052941,166.67,166.66,20.0]
[1730839681456,0.3052941,166.67,166.66,33.85208066]
[1730839682674,0.3052941,166.67,166.66,63.75465466]
[1730839683169,0.3052941,166.67,166.66,26.0002]
[1730839684065,0.3052941,166.67,166.66,39.85228066]
[1730839686391,0.3052941,166.67,166.66,63.75465466]
[1730839688170,0.3052941,166.67,166.66,63.98014466]
[1730839688369,0.3052941,166.67,166.66,64.10563466]
[1730839688589,16.6219,166.78,166.69,0.25098]
[1730839688737,30.47398066,166.78,166.73,20.0]
[1730839689141,6.3421,166.82,166.73,33.85208066]
[1730839689448,13.85208066,166.8,166.75,20.0]
[1730839690281,0.3052941,166.84,166.75,20.0]
[1730839690282,0.3052941,166.84,166.77,20.1]
[1730839690481,0.3052941,166.84,166.83,13.85208066]
[1730839690710,0.3052941,166.84,166.83,20.0]
[1730839691160,0.3052941,166.84,166.82,20.12549]
[1730839691358,0.3052941,166.84,166.83,33.85208066]
[1730839691779,0.3052941,166.84,166.83,20.0]
[1730839692200,0.3052941,166.84,166.83,25.9941]
[1730839692992,0.3052941,166.84,166.83,5.9941]
[1730839693175,0.3052941,166.84,166.83,25.9941]
[1730839693489,0.3052941,166.84,166.83,39.84618066]
[1730839694065,0.3052941,166.84,166.83,39.97167066]
[1730839695684,0.3052941,166.84,166.83,63.74855466]
[1730839695898,0.3052941,166.84,166.83,63.87404466]
[1730839696059,0.3052941,166.84,166.83,86.20374466]
[1730839696260,0.3052941,166.84,166.83,87.72738869]
[1730839697560,0.3052941,166.84,166.83,86.32923466]
[1730839698093,0.3052941,166.84,166.83,66.07825466]
[1730839698474,0.3052941,166.84,166.83,19.97167066]
[1730839698671,0.3052941,166.84,166.83,13.85208066]
[1730839698870,0.3052941,166.84,166.82,20.9802]
[1730839701682,0.3052941,166.84,166.81,20.0]
[1730839702174,0.3052941,166.84,166.81,33.85208066]
[1730839703284,0.3052941,166.84,166.81,20.0]
[1730839703677,0.3052941,166.84,166.81,33.85208066]
[1730839703882,0.3052941,166.84,166.83,33.97757066]
[1730839704201,0.3052941,166.84,166.83,57.87994466]
[1730839704375,0.3052941,166.84,166.83,57.75445466]
[1730839705109,0.3052941,166.84,166.83,57.87994466]
[1730839705706,0.3052941,166.92,166.87,44.027864]
[1730839705869,0.3052941,166.92,166.91,13.85208066]
[1730839706073,0.3052941,166.92,166.91,33.85208066]
[1730839706274,0.3052941,166.92,166.91,57.75445466]
[1730839707198,0.3052941,166.92,166.91,33.85208066]
[1730839707784,0.3052941,166.92,166.91,39.84328066]
[1730839710983,0.3052941,166.92,166.91,64.10705466]
[1730839712008,0.3052941,166.92,166.91,64.23254466]
[1730839715674,0.3052941,166.92,166.91,64.55803466]
[1730839715905,16.5889941,167.0,166.94,0.35098]
[1730839716205,16.5889941,167.0,166.99,13.85208066]
[1730839716584,16.5889941,167.0,166.99,39.84038066]
[1730839716777,16.5889941,167.0,166.99,25.9883]
[1730839716978,16.5889941,167.0,166.99,20.0]
[1730839716979,16.2837,167.0,166.99,20.0]
[1730839717388,16.2837,167.0,166.99,39.84038066]
[1730839717782,16.2837,167.0,166.99,25.9883]
[1730839718306,16.2837,167.0,166.99,39.84038066]
[1730839718913,16.2837,167.0,166.99,25.9883]
[1730839719604,16.2837,167.0,166.99,5.9883]
[1730839720218,16.2837,167.0,166.97,13.85208066]
[1730839720396,16.2837,167.0,166.96,13.85208066]
[1730839720592,16.2837,167.0,166.97,13.85208066]
[1730839722307,16.2837,167.0,166.96,19.84118066]
[1730839722499,16.1121,166.99,166.94,34.81638066]
[1730839722696,16.1121,166.99,166.95,13.85208066]
[1730839724403,16.1121,166.99,166.96,13.85208066]
[1730839724602,16.2837,167.0,166.97,13.85208066]
[1730839724799,16.2837,167.0,166.95,34.81618066]
[1730839724800,30.13578066,167.0,166.95,34.81618066]
[1730839724993,36.12398066,167.0,166.95,34.81618066]
[1730839725427,22.2719,167.0,166.95,34.81618066]
[1730839727525,36.12398066,167.0,166.94,13.85208066]
[1730839727937,16.2837,167.0,166.97,13.85208066]
[1730839729970,16.2837,167.0,166.97,19.84088066]
[1730839730279,16.2837,167.0,166.97,5.9888]
[1730839730945,16.2837,167.0,166.97,34.81358066]
[1730839731841,16.2837,167.0,166.97,20.9615]
[1730839732043,16.2837,167.0,166.99,33.85208066]
[1730839733269,16.2837,167.0,166.99,39.84038066]
[1730839733851,16.2837,167.0,166.99,40.20178066]
[1730839737071,16.2837,167.0,166.99,0.3614]
[1730839737449,16.2837,167.0,166.99,6.3497]
[1730839737642,16.2837,167.0,166.99,0.3614]
[1730839737843,16.2837,167.0,166.99,20.20178066]
[1730839738660,16.2837,167.0,166.99,40.20178066]
[1730839742070,16.2837,167.0,166.99,64.10415466]
[1730839742374,16.2837,167.0,166.99,40.20178066]
[1730839744177,16.2837,167.0,166.99,20.20178066]
[1730839745593,16.2837,167.0,166.99,40.20178066]
[1730839745877,16.2837,167.0,166.99,39.70178066]
[1730839747161,16.2837,167.0,166.98,13.85208066]
[1730839747360,16.2837,167.0,166.91,0.1]
[1730839747361,13.85208066,166.99,166.93,28.82788066]
[1730839747557,13.85208066,166.98,166.93,14.9758]
[1730839748054,13.97757066,166.99,166.93,28.82788066]
[1730839748578,13.97757066,166.99,166.94,20.0]
[1730839748777,13.85208066,166.98,166.94,20.0]
[1730839748981,19.96597066,166.99,166.94,25.9899]
[1730839749362,13.85208066,166.98,166.94,25.9899]
[1730839749569,13.85208066,166.97,166.94,20.0]
[1730839749766,5.9884,166.99,166.94,20.0]
[1730839749767,13.85208066,166.98,166.94,20.0]
[1730839750159,13.85208066,166.98,166.94,25.9901]
[1730839750366,13.85208066,166.98,166.94,20.0]
[1730839750682,13.85208066,166.98,166.93,14.9758]
[1730839750885,13.85208066,166.94,166.9,20.9701]
[1730839751691,13.85208066,166.95,166.9,20.9701]
[1730839752057,13.85208066,166.95,166.9,34.82218066]
[1730839752261,30.15468066,166.96,166.9,34.82218066]
[1730839752470,13.85208066,166.95,166.9,20.9701]
[1730839752682,13.85208066,166.94,166.9,20.9701]
[1730839753072,13.85208066,166.95,166.9,20.9701]
[1730839753997,36.14428066,166.96,166.9,13.85208066]
[1730839754958,13.85208066,166.95,166.9,20.0]
[1730839755158,13.85208066,166.95,166.9,25.9916]
[1730839756063,13.85208066,166.95,166.9,40.9706]
[1730839757694,19.84188066,166.95,166.9,40.9706]
[1730839758066,13.85208066,166.95,166.9,40.9706]
[1730839758271,13.85208066,166.95,166.9,54.82268066]
[1730839758583,30.15468066,166.96,166.9,34.82268066]
[1730839758778,16.3026,166.96,166.92,13.85208066]
[1730839759899,16.3026,166.96,166.92,19.84268066]
[1730839760074,16.3026,166.96,166.92,34.81988066]
[1730839760672,30.15468066,166.96,166.92,20.9678]
[1730839761198,36.14408066,166.96,166.92,20.9678]
[1730839761898,36.14408066,166.96,166.92,14.9772]
[1730839762192,16.3026,166.96,166.92,14.9772]
[1730839763199,13.85208066,166.93,166.86,5.993]
[1730839763401,13.85208066,166.91,166.86,5.993]
[1730839763702,13.85208066,166.92,166.86,19.84508066]
[1730839763904,19.84258066,166.94,166.88,13.85208066]
[1730839764402,13.85208066,166.93,166.87,13.85208066]
[1730839765178,5.9905,166.93,166.88,19.84438066]
[1730839765385,19.84228066,166.94,166.88,34.82518066]
[1730839767401,19.84228066,166.94,166.89,13.85208066]
[1730839768905,13.85208066,166.95,166.9,13.85208066]